lending/lending_fUSD_20260206
["ID","MTS","AMOUNT","RATE_DAILY","PERIOD"]
[404671645,1770408381537,500.0,7.983e-05,2]
[404671646,1770408381580,500.0,7.983e-05,2]
[404671647,1770408381615,500.0,7.983e-05,2]
[404671648,1770408381660,500.0,7.983e-05,2]
[404671649,1770408381695,500.0,7.983e-05,2]
[404671650,1770408381729,500.0,7.983e-05,2]
[404671651,1770408381770,500.0,7.983e-05,2]
[404671652,1770408381804,500.0,7.983e-05,2]
[404671653,1770408381844,317.25242916,7.983e-05,2]
[404671654,1770408381868,182.74757084,7.983e-05,2]
[404671655,1770408381907,500.0,7.983e-05,2]
[404671656,1770408399416,1142.77,7.77e-05,2]
[404671657,1770408403003,500.0,7.983e-05,2]
[404671658,1770408403037,500.0,7.983e-05,2]
[404671659,1770408403082,500.0,7.983e-05,2]
[404671660,1770408403117,500.0,7.983e-05,2]
[404671661,1770408403152,500.0,7.983e-05,2]
[404671662,1770408403188,500.0,7.983e-05,2]
[404671663,1770408403222,500.0,7.983e-05,2]
[404671664,1770408403257,500.0,7.983e-05,2]
[404671665,1770408403290,500.0,7.983e-05,2]
[404671666,1770408403324,500.0,7.983e-05,2]
[404671667,1770408403357,500.0,7.983e-05,2]
[404671668,1770408403392,500.0,7.983e-05,2]
[404671669,1770408403427,500.0,7.983e-05,2]
[404671670,1770408403463,500.0,7.983e-05,2]
[404671671,1770408403498,500.0,7.983e-05,2]
[404671672,1770408403530,500.0,7.983e-05,2]
[404671673,1770408403562,174.49242916,7.983e-05,2]
[404671674,1770408403586,325.50757084,7.983e-05,2]
[404671675,1770408403619,500.0,7.983e-05,2]
[404671676,1770408403654,500.0,7.983e-05,2]
[404671677,1770408403688,500.0,7.983e-05,2]
[404671678,1770408403722,500.0,7.983e-05,2]
[404671679,1770408403757,500.0,7.983e-05,2]
[404671680,1770408403791,500.0,7.983e-05,2]
[404671681,1770408403824,500.0,7.983e-05,2]
[404671682,1770408403857,500.0,7.983e-05,2]
[404671683,1770408403889,500.0,7.983e-05,2]
[404671684,1770408403971,500.0,7.983e-05,2]
[404671685,1770408404006,500.0,7.983e-05,2]
[404671686,1770408404040,500.0,7.983e-05,2]
[404671687,1770408404357,500.0,7.983e-05,2]
[404671688,1770408404395,500.0,7.983e-05,2]
[404671689,1770408404431,500.0,7.983e-05,2]
[404671690,1770408404481,500.0,7.983e-05,2]
[404671691,1770408404522,500.0,7.983e-05,2]
[404671692,1770408404557,500.0,7.983e-05,2]
[404671693,1770408404610,500.0,7.983e-05,2]
[404671694,1770408404647,174.50242916,7.983e-05,2]
[404671695,1770408404674,325.49757084,7.983e-05,2]
[404671696,1770408404752,500.0,7.983e-05,2]
[404671697,1770408404786,500.0,7.983e-05,2]
[404671698,1770408421228,300.0,7.983e-05,2]
[404671699,1770408428337,276.0926,7.884e-05,2]
[404671700,1770408441002,200.0,7.957e-05,2]
[404671701,1770408459637,500.0,7.983e-05,2]
[404671702,1770408459694,500.0,7.983e-05,2]
[404671703,1770408459743,500.0,7.983e-05,2]
[404671704,1770408459800,345.37436666,7.983e-05,2]
[404671705,1770408473377,7378.54303334,7.884e-05,2]
[404671706,1770408473404,10000.01,7.884e-05,2]
[404671707,1770408473437,10000.01,7.884e-05,2]
[404671708,1770408473465,10000.01,7.884e-05,2]
[404671709,1770408473492,10000.01,7.884e-05,2]
[404671710,1770408473516,10000.01,7.884e-05,2]
[404671711,1770408473542,10000.01,7.884e-05,2]
[404671712,1770408473565,10000.01,7.884e-05,2]
[404671713,1770408473589,10000.01,7.884e-05,2]
[404671714,1770408473618,10000.01,7.884e-05,2]
[404671715,1770408473651,2000000.0,7.884e-05,2]
[404671716,1770408504574,500.0,7.655e-05,2]
[404671717,1770408512251,208.19750916,7.883e-05,2]
[404671718,1770408512770,500.0,7.883e-05,2]
[404671719,1770408512809,500.0,7.883e-05,2]
[404671720,1770408512851,500.0,7.883e-05,2]
[404671721,1770408512886,500.0,7.883e-05,2]
[404671722,1770408512940,500.0,7.883e-05,2]
[404671723,1770408512980,500.0,7.883e-05,2]
[404671724,1770408513026,500.0,7.883e-05,2]
[404671725,1770408513060,217.04487695,7.883e-05,2]
[404671726,1770408513100,500.0,7.883e-05,2]
[404671727,1770408513137,500.0,7.883e-05,2]
[404671728,1770408513176,500.0,7.883e-05,2]
[404671729,1770408513221,500.0,7.883e-05,2]
[404671730,1770408513258,500.0,7.883e-05,2]
[404671731,1770408513296,500.0,7.883e-05,2]
[404671732,1770408513333,343.03997007,7.883e-05,2]
[404671733,1770408529983,500.0,7.883e-05,2]
[404671734,1770408530019,500.0,7.883e-05,2]
[404671735,1770408539825,1852.42,7.68e-05,2]
[404671736,1770408541834,150.0,7.883e-05,2]
[404671737,1770408561864,500.0,7.883e-05,2]
[404671738,1770408564152,-5187.90734,7.884e-05,2]
[404671739,1770408570441,300.0,7.883e-05,2]
[404671740,1770408591725,2669.65,7.73e-05,2]
[404671741,1770408601152,1200.0,7.883e-05,2]
[404671742,1770408603908,216.0,7.884e-05,2]
[404671757,1770408631958,-21230.17407283,7.884e-05,2]
[404671763,1770408632013,-291.47,7.884e-05,2]
[404671766,1770408632026,-334.02485,7.884e-05,2]
[404671768,1770408632037,-511.41,7.884e-05,2]
[404671772,1770408632067,-1375066.38070383,7.884e-05,2]
[404671774,1770408632077,-6728.3003,7.884e-05,2]
[404671776,1770408632087,-1157.3444581,7.983e-05,2]
[404671778,1770408632097,-250.0,7.998e-05,2]
[404671779,1770408632108,-250.0,8.035e-05,2]
[404671780,1770408632118,-1000.0,8.083e-05,2]
[404671781,1770408632128,-203.3499,8.084e-05,2]
[404671782,1770408632138,-500.0,8.084e-05,2]
[404671783,1770408632147,-500.0,8.084e-05,2]
[404671784,1770408632157,-500.0,8.084e-05,2]
[404671785,1770408632167,-500.0,8.084e-05,2]
[404671786,1770408632176,-362.77063245,8.084e-05,2]
[404671787,1770408632186,-224.41,8.1e-05,2]
[404671788,1770408632195,-1000.0,8.182e-05,2]
[404671789,1770408632204,-241.05,8.2e-05,2]
[404671790,1770408632214,-3634.47,8.2e-05,2]
[404671791,1770408632223,-9999.99,8.2e-05,2]
[404671792,1770408632233,-9999.99,8.2e-05,2]
[404671793,1770408632244,-1183.0,8.2e-05,2]
[404671794,1770408632253,-14015.2,8.2e-05,2]
[404671795,1770408632263,-999.99,8.2e-05,2]
[404671796,1770408632272,-9999.99,8.2e-05,2]
[404671797,1770408632282,-150.99,8.2e-05,2]
[404671798,1770408632291,-299.99,8.2e-05,2]
[404671799,1770408632300,-427.71,8.2e-05,2]
[404671800,1770408632309,-9999.99,8.2e-05,2]
[404671801,1770408632319,-349.08,8.2e-05,2]
[404671802,1770408632328,-165.83,8.219e-05,2]
[404671803,1770408632338,-9999.99,8.221e-05,2]
[404671805,1770408632347,-9999.99,8.221e-05,2]
[404671807,1770408632358,-251721.14,8.221e-05,2]
[404671809,1770408632367,-4999.99,8.221e-05,2]
[404671810,1770408632376,-7124.74,8.221e-05,2]
[404671812,1770408632386,-1344.83858925,8.315e-05,2]
[404671814,1770408632395,-5528.0,8.356e-05,2]
[404671816,1770408632404,-14446.0,8.356e-05,2]
[404671819,1770408632417,-1000.0,8.394e-05,2]
[404671821,1770408632427,-9339.32,8.394e-05,2]
[404671823,1770408632436,-1539.94,8.394e-05,2]
[404671825,1770408632446,-1621.47,8.394e-05,2]
[404671827,1770408632459,-150.99,8.394e-05,2]
[404671829,1770408632469,-1470.95,8.394e-05,2]
[404671831,1770408632478,-2006.11,8.394e-05,2]
[404671833,1770408632487,-3454.61,8.394e-05,2]
[404671834,1770408632497,-355300.6460453,8.428e-05,2]
[404671835,1770408632507,-1013.85,8.63e-05,2]
[404671836,1770408632516,-9652.52,8.63e-05,2]
[404671837,1770408632525,-255.0,8.672e-05,2]
[404671838,1770408632536,-420.0,8.672e-05,2]
[404671839,1770408632545,-1680.0,8.672e-05,2]
[404671840,1770408632554,-500.0,8.672e-05,2]
[404671841,1770408632564,-300.0,8.673e-05,2]
[404671842,1770408632573,-300.0,8.673e-05,2]
[404671843,1770408632582,-500.0,8.673e-05,2]
[404671844,1770408632591,-300.0,8.673e-05,2]
[404671845,1770408632601,-300.0,8.673e-05,2]
[404671846,1770408632611,-300.0,8.673e-05,2]
[404671847,1770408632620,-165.83,8.676e-05,2]
[404671848,1770408632629,-250.0,8.783e-05,2]
[404671849,1770408632639,-193.49422272,8.783e-05,2]
[404671850,1770408632648,-500.0,8.783e-05,2]
[404671851,1770408632657,-543.70924244,8.783e-05,2]
[404671852,1770408632667,-1107.39800626,8.849e-05,2]
[404671853,1770408632676,-150.0,8.862e-05,2]
[404671854,1770408632686,-150.0,8.862e-05,2]
[404671855,1770408632696,-150.0,8.862e-05,2]
[404671856,1770408632705,-500.0,8.862e-05,2]
[404671857,1770408632715,-150.0,8.862e-05,2]
[404671858,1770408632725,-500.0,8.862e-05,2]
[404671859,1770408632734,-150.0,8.862e-05,2]
[404671860,1770408632743,-150.0,8.862e-05,2]
[404671861,1770408632753,-150.51948842,8.862e-05,2]
[404671862,1770408632762,-150.0,8.862e-05,2]
[404671863,1770408632772,-500.0,8.862e-05,2]
[404671864,1770408632781,-500.0,8.862e-05,2]
[404671865,1770408632791,-150.0,8.862e-05,2]
[404671866,1770408632800,-150.0,8.862e-05,2]
[404671867,1770408632809,-180.53234809,8.862e-05,2]
[404671868,1770408632819,-500.0,8.862e-05,2]
[404671869,1770408632828,-500.0,8.862e-05,2]
[404671870,1770408632838,-150.0,8.862e-05,2]
[404671871,1770408632847,-150.0,8.862e-05,2]
[404671872,1770408632857,-150.0,8.862e-05,2]
[404671873,1770408632867,-150.0,8.862e-05,2]
[404671874,1770408632876,-150.0,8.862e-05,2]
[404671875,1770408632885,-500.0,8.862e-05,2]
[404671876,1770408632894,-150.0,8.862e-05,2]
[404671877,1770408632904,-150.0,8.862e-05,2]
[404671878,1770408632913,-500.0,8.862e-05,2]
[404671879,1770408632923,-500.0,8.862e-05,2]
[404671880,1770408632932,-500.0,8.862e-05,2]
[404671881,1770408632942,-152.22428252,8.862e-05,2]
[404671882,1770408632951,-174.81742017,8.862e-05,2]
[404671883,1770408632960,-150.0,8.862e-05,2]
[404671884,1770408632970,-500.0,8.862e-05,2]
[404671885,1770408632980,-150.0,8.917e-05,2]
[404671886,1770408632990,-150.0,8.917e-05,2]
[404671887,1770408633000,-150.0,8.917e-05,2]
[404671888,1770408633011,-500.0,8.917e-05,2]
[404671889,1770408633021,-150.0,8.917e-05,2]
[404671890,1770408633030,-500.0,8.917e-05,2]
[404671891,1770408633040,-150.0,8.917e-05,2]
[404671892,1770408633049,-150.0,8.917e-05,2]
[404671893,1770408633059,-150.0,8.917e-05,2]
[404671894,1770408633068,-500.0,8.917e-05,2]
[404671895,1770408633078,-500.0,8.917e-05,2]
[404671896,1770408633087,-150.0,8.917e-05,2]
[404671897,1770408633097,-150.0,8.917e-05,2]
[404671898,1770408633107,-534.05277609,8.917e-05,2]
[404671899,1770408633117,-150.0,8.917e-05,2]
[404671900,1770408633127,-500.0,8.917e-05,2]
[404671901,1770408633136,-150.0,8.917e-05,2]
[404671902,1770408633146,-150.0,8.917e-05,2]
[404671903,1770408633155,-150.0,8.917e-05,2]
[404671904,1770408633165,-500.0,8.917e-05,2]
[404671905,1770408633178,-150.0,8.917e-05,2]
[404671906,1770408633187,-150.0,8.917e-05,2]
[404671907,1770408633196,-500.0,8.917e-05,2]
[404671908,1770408633206,-500.0,8.917e-05,2]
[404671909,1770408633216,-500.0,8.917e-05,2]
[404671910,1770408633226,-151.49755887,8.917e-05,2]
[404671911,1770408633236,-500.0,8.917e-05,2]
[404671912,1770408633245,-500.0,8.946e-05,2]
[404671913,1770408633254,-3061.83,8.947e-05,2]
[404671914,1770408633265,-165.6,8.954e-05,2]
[404671915,1770408633275,-150.0,8.972e-05,2]
[404671916,1770408633284,-215.60722138,8.972e-05,2]
[404671917,1770408633294,-155.36591009,8.972e-05,2]
[404671918,1770408633303,-500.0,8.972e-05,2]
[404671919,1770408633313,-150.0,8.972e-05,2]
[404671920,1770408633322,-500.0,8.972e-05,2]
[404671921,1770408633331,-150.0,8.972e-05,2]
[404671922,1770408633340,-150.0,8.972e-05,2]
[404671923,1770408633349,-500.0,8.972e-05,2]
[404671924,1770408633359,-500.0,8.972e-05,2]
[404671925,1770408633368,-150.0,8.972e-05,2]
[404671926,1770408633378,-500.0,8.972e-05,2]
[404671927,1770408633387,-150.0,8.972e-05,2]
[404671928,1770408633396,-150.0,8.972e-05,2]
[404671929,1770408633405,-150.0,8.972e-05,2]
[404671930,1770408633415,-204.11430393,8.972e-05,2]
[404671931,1770408633424,-500.0,8.972e-05,2]
[404671932,1770408633433,-200.0,8.972e-05,2]
[404671933,1770408633442,-500.0,8.972e-05,2]
[404671934,1770408633454,-500.0,8.972e-05,2]
[404671935,1770408633463,-647.37651521,8.972e-05,2]
[404671936,1770408633472,-500.0,8.972e-05,2]
[404671937,1770408633482,-37767.59992658,8.973e-05,2]
[404671938,1770408633491,-5994.6518,9.014e-05,2]
[404671939,1770408633501,-500.0,9.026e-05,2]
[404671940,1770408633511,-150.0,9.026e-05,2]
[404671941,1770408633520,-150.0,9.026e-05,2]
[404671942,1770408633530,-359.16308256,9.026e-05,2]
[404671943,1770408633539,-500.0,9.026e-05,2]
[404671944,1770408633549,-150.0,9.026e-05,2]
[404671945,1770408633559,-500.0,9.026e-05,2]
[404671946,1770408633569,-200.0,9.026e-05,2]
[404671947,1770408633578,-201.77401449,9.026e-05,2]
[404671948,1770408633587,-250.0,9.026e-05,2]
[404671949,1770408633597,-500.0,9.026e-05,2]
[404671950,1770408633607,-463.96761622,9.026e-05,2]
[404671951,1770408633616,-155.36603291,9.026e-05,2]
[404671952,1770408633626,-207.63376559,9.052e-05,2]
[404671953,1770408633634,-150.0,9.081e-05,2]
[404671954,1770408633643,-150.0,9.081e-05,2]
[404671955,1770408633652,-150.0,9.081e-05,2]
[404671956,1770408633662,-500.0,9.081e-05,2]
[404671957,1770408633671,-500.0,9.081e-05,2]
[404671958,1770408633680,-165.83,9.132e-05,2]
[404671959,1770408633689,-250.0,9.136e-05,2]
[404671960,1770408633699,-250.0,9.136e-05,2]
[404671961,1770408633707,-250.0,9.136e-05,2]
[404671962,1770408633717,-500.0,9.136e-05,2]
[404671963,1770408633726,-500.0,9.136e-05,2]
[404671964,1770408633735,-13812.82,9.15e-05,2]
[404671965,1770408633744,-500.0,9.191e-05,2]
[404671966,1770408633754,-500.0,9.191e-05,2]
[404671967,1770408633762,-500.0,9.22e-05,2]
[404671968,1770408633772,-434.14671465,9.246e-05,2]
[404671969,1770408633781,-500.0,9.246e-05,2]
[404671970,1770408633791,-500.0,9.3e-05,2]
[404671971,1770408633800,-500.0,9.355e-05,2]
[404671972,1770408633809,-500.0,9.41e-05,2]
[404671973,1770408633819,-1000.0,9.444e-05,2]
[404671974,1770408633828,-482.54855076,9.465e-05,2]
[404671975,1770408633837,-500.0,9.494e-05,2]
[404671976,1770408633847,-433.0,9.539e-05,2]
[404671977,1770408633859,-587.0,9.539e-05,2]
[404671978,1770408633870,-2351.0,9.539e-05,2]
[404671979,1770408633879,-165.83,9.589e-05,2]
[404671980,1770408633888,-500.0,9.768e-05,2]
[404671981,1770408633897,-365.06238246,0.0001,2]
[404671982,1770408633907,-365.06238246,0.0001,2]
[404671983,1770408633916,-365.06238246,0.0001,2]
[404671984,1770408633926,-151.0,0.0001,2]
[404671985,1770408633935,-151.0,0.0001,2]
[404671986,1770408633948,-613.67515491,0.0001,2]
[404671987,1770408633957,-151.0,0.0001,2]
[404671988,1770408633967,-263.53,0.0001,2]
[404671989,1770408633976,-151.0,0.0001,2]
[404671990,1770408633985,-151.0,0.0001,2]
[404671991,1770408633995,-151.0,0.0001,2]
[404671992,1770408634004,-151.0,0.0001,2]
[404671993,1770408634014,-151.0,0.0001,2]
[404671994,1770408634023,-151.0,0.0001,2]
[404671995,1770408634033,-151.0,0.0001,2]
[404671996,1770408634043,-151.0,0.0001,2]
[404671997,1770408634053,-151.0,0.0001,2]
[404671998,1770408634062,-151.0,0.0001,2]
[404671999,1770408634072,-151.0,0.0001,2]
[404672000,1770408634082,-151.0,0.0001,2]
[404672001,1770408634091,-151.0,0.0001,2]
[404672002,1770408634101,-151.0,0.0001,2]
[404672003,1770408634114,-151.0,0.0001,2]
[404672004,1770408634124,-151.0,0.0001,2]
[404672005,1770408634133,-151.0,0.0001,2]
[404672006,1770408634142,-151.0,0.0001,2]
[404672007,1770408634153,-151.0,0.0001,2]
[404672008,1770408634162,-151.0,0.0001,2]
[404672009,1770408634172,-151.0,0.0001,2]
[404672010,1770408634181,-151.0,0.0001,2]
[404672011,1770408634191,-151.0,0.0001,2]
[404672012,1770408634201,-151.0,0.0001,2]
[404672013,1770408634210,-151.0,0.0001,2]
[404672014,1770408634220,-151.0,0.0001,2]
[404672015,1770408634230,-151.0,0.0001,2]
[404672016,1770408634240,-151.0,0.0001,2]
[404672017,1770408634250,-151.0,0.0001,2]
[404672018,1770408634260,-151.0,0.0001,2]
[404672019,1770408634270,-151.0,0.0001,2]
[404672020,1770408634279,-151.0,0.0001,2]
[404672021,1770408634288,-151.0,0.0001,2]
[404672022,1770408634298,-151.0,0.0001,2]
[404672023,1770408634307,-151.0,0.0001,2]
[404672024,1770408634317,-151.0,0.0001,2]
[404672025,1770408634326,-151.0,0.0001,2]
[404672026,1770408634336,-151.0,0.0001,2]
[404672027,1770408634345,-151.0,0.0001,2]
[404672028,1770408634356,-240.04973376,0.0001,2]
[404672029,1770408634366,-1448.66814703,0.0001,2]
[404672030,1770408634375,-1344.83858925,0.00010023,2]
[404672031,1770408634385,-483.56,0.00010034,2]
[404672032,1770408634394,-500.0,0.00010042,2]
[404672033,1770408634404,-165.83,0.00010046,2]
[404672034,1770408634414,-165.6,0.00010073,2]
[404672035,1770408634423,-422.7,0.00010114,2]
[404672036,1770408634432,-500.0,0.00010316,2]
[404672037,1770408634442,-500.0,0.00010373,2]
[404672038,1770408634453,-500.125501,0.00010373,2]
[404672039,1770408634463,-177.82239355,0.00010373,2]
[404672040,1770408634472,-500.0,0.00010373,2]
[404672041,1770408634482,-502.01902593,0.00010373,2]
[404672042,1770408634491,-500.0,0.00010373,2]
[404672043,1770408634501,-500.0,0.00010373,2]
[404672044,1770408634511,-607.15821099,0.00010373,2]
[404672045,1770408634521,-500.0,0.00010373,2]
[404672046,1770408634531,-500.0,0.00010373,2]
[404672047,1770408634540,-500.0,0.00010373,2]
[404672048,1770408634550,-500.0,0.00010373,2]
[404672049,1770408634559,-500.0,0.00010373,2]
[404672050,1770408634568,-500.65680105,0.00010373,2]
[404672051,1770408634578,-500.0,0.00010373,2]
[404672052,1770408634587,-500.0,0.00010373,2]
[404672053,1770408634596,-217.79448741,0.00010373,2]
[404672054,1770408634606,-166.9158046,0.00010373,2]
[404672055,1770408634615,-500.0,0.00010373,2]
[404672056,1770408634624,-500.0,0.00010373,2]
[404672057,1770408634634,-500.0,0.00010373,2]
[404672058,1770408634643,-500.0,0.00010373,2]
[404672059,1770408634652,-500.0,0.00010373,2]
[404672060,1770408634661,-500.0,0.00010373,2]
[404672061,1770408634670,-500.56804526,0.00010373,2]
[404672062,1770408634680,-169.77417539,0.00010373,2]
[404672063,1770408634689,-500.0,0.00010373,2]
[404672064,1770408634698,-500.0,0.00010373,2]
[404672065,1770408634707,-500.0,0.00010373,2]
[404672066,1770408634718,-500.0,0.00010373,2]
[404672067,1770408634727,-500.0,0.00010373,2]
[404672068,1770408634736,-500.0,0.00010373,2]
[404672069,1770408634745,-500.0,0.00010373,2]
[404672070,1770408634755,-500.0,0.00010373,2]
[404672071,1770408634764,-500.0,0.00010373,2]
[404672072,1770408634774,-500.0,0.00010373,2]
[404672073,1770408634783,-166.49550057,0.00010373,2]
[404672074,1770408634792,-250.0,0.00010418,2]
[404672075,1770408634802,-600.0,0.00010445,2]
[404672076,1770408634811,-343.39,0.00010445,2]
[404672077,1770408634820,-1000.0,0.00010493,2]
[404672078,1770408634829,-736.0,0.00010493,2]
[404672079,1770408634838,-823.0,0.00010493,2]
[404672080,1770408634847,-3292.0,0.00010493,2]
[404672081,1770408634857,-165.83,0.00010502,2]
[404672082,1770408634866,-500.0,0.0001059,2]
[404672083,1770408634875,-500.0,0.00010864,2]
[404672084,1770408634885,-1000.0,0.00010921,2]
[404672085,1770408634894,-1000.0,0.00010921,2]
[404672086,1770408634903,-1000.0,0.00010921,2]
[404672087,1770408634913,-1000.0,0.00010921,2]
[404672088,1770408634922,-1000.0,0.00010921,2]
[404672089,1770408634931,-446.37537156,0.00010921,2]
[404672090,1770408634941,-1000.0,0.00010921,2]
[404672091,1770408634950,-1000.0,0.00010921,2]
[404672092,1770408634959,-1000.0,0.00010921,2]
[404672093,1770408634969,-1010.7037772,0.00010921,2]
[404672094,1770408634978,-501.57483784,0.00010921,2]
[404672095,1770408634988,-1000.0,0.00010921,2]
[404672096,1770408634998,-1000.0,0.00010921,2]
[404672097,1770408635007,-1000.0,0.00010921,2]
[404672098,1770408635017,-614.32879488,0.00010921,2]
[404672099,1770408635027,-1000.0,0.00010921,2]
[404672100,1770408635037,-616.68206911,0.00010921,2]
[404672101,1770408635046,-1000.0,0.00010921,2]
[404672102,1770408635056,-619.45163428,0.00010921,2]
[404672103,1770408635066,-1000.0,0.00010921,2]
[404672104,1770408635075,-1000.0,0.00010921,2]
[404672105,1770408635085,-1000.0,0.00010921,2]
[404672106,1770408635094,-1000.0,0.00010921,2]
[404672107,1770408635104,-1000.0,0.00010921,2]
[404672108,1770408635114,-1004.53493259,0.00010921,2]
[404672109,1770408635124,-150.0,0.00010959,2]
[404672110,1770408635134,-165.83,0.00010959,2]
[404672111,1770408635144,-30243.71964148,0.00011099,2]
[404672112,1770408635154,-30243.71964147,0.00011099,2]
[404672113,1770408635163,-30243.71964147,0.00011099,2]
[404672114,1770408635173,-10324.86838893,0.00011099,2]
[404672115,1770408635183,-10324.86838893,0.00011099,2]
[404672116,1770408635193,-10324.86838893,0.00011099,2]
[404672117,1770408635202,-500.0,0.00011138,2]
[404672118,1770408635212,-10324.86838893,0.00011222,2]
[404672119,1770408635223,-30243.71964147,0.00011232,2]
[404672120,1770408635232,-500.0,0.00011412,2]
[404672121,1770408635241,-165.83,0.00011416,2]
[404672122,1770408635250,-1009.49329008,0.00011468,2]
[404672123,1770408635260,-680.43799611,0.00011468,2]
[404672124,1770408635269,-1500.0,0.00011468,2]
[404672125,1770408635279,-1500.0,0.00011468,2]
[404672126,1770408635288,-685.84619261,0.00011468,2]
[404672127,1770408635298,-1541.38998131,0.00011468,2]
[404672128,1770408635308,-1500.0,0.00011468,2]
[404672129,1770408635317,-1500.0,0.00011468,2]
[404672130,1770408635326,-1500.0,0.00011468,2]
[404672131,1770408635336,-505.56624266,0.00011468,2]
[404672132,1770408635345,-1502.08630152,0.00011468,2]
[404672133,1770408635354,-408.34309823,0.00011468,2]
[404672134,1770408635365,-1181.4550928,0.00011468,2]
[404672135,1770408635376,-1500.0,0.00011468,2]
[404672136,1770408635386,-1500.0,0.00011468,2]
[404672137,1770408635395,-1500.0,0.00011468,2]
[404672138,1770408635404,-1500.0,0.00011468,2]
[404672139,1770408635414,-1474.2543775,0.00011468,2]
[404672140,1770408635423,-1252.0,0.00011541,2]
[404672141,1770408635433,-1010.0,0.00011542,2]
[404672142,1770408635609,-4609.0,0.00011542,2]
[404672143,1770408635620,-1000.0,0.00011542,2]
[404672144,1770408635629,-502.96360645,0.00011686,2]
[404672145,1770408635638,-1344.83858925,0.00011731,2]
[404672146,1770408635647,-165.83,0.00011872,2]
[404672147,1770408635657,-2000.0,0.00012016,2]
[404672148,1770408635667,-2000.0,0.00012016,2]
[404672149,1770408635677,-2000.0,0.00012016,2]
[404672150,1770408635686,-202.80837267,0.00012016,2]
[404672151,1770408635696,-2000.0,0.00012016,2]
[404672152,1770408635705,-19999.99,0.00012087,2]
[404672153,1770408635715,-165.83,0.00012329,2]
[404672154,1770408635724,-10324.86838893,0.00012335,2]
[404672155,1770408635734,-30243.71964147,0.00012343,2]
[404672156,1770408635743,-3061.83,0.00012526,2]
[404672157,1770408635753,-349.18395774,0.00012564,2]
[404672158,1770408635763,-2500.0,0.00012564,2]
[404672159,1770408635772,-2500.0,0.00012564,2]
[404672160,1770408635782,-189.11468629,0.00012564,2]
[404672161,1770408635792,-1000.0,0.00012591,2]
[404672162,1770408635801,-6453.0,0.00012696,2]
[404672163,1770408635810,-2129.0,0.000127,2]
[404672164,1770408635820,-240.04973375,0.00012899,2]
[404672165,1770408635830,-1000.0,0.00013041,2]
[404672166,1770408635839,-3000.0,0.00013112,2]
[404672167,1770408635849,-1500.0,0.00013112,2]
[404672168,1770408635860,-1344.83858925,0.00013439,2]
[404672169,1770408635870,-10324.86838893,0.00013448,2]
[404672170,1770408635879,-30243.71964147,0.00013455,2]
[404672171,1770408635888,-1258.30109505,0.0001366,2]
[404672172,1770408635898,-500.0,0.00013698,2]
[404672173,1770408635907,-500.0,0.00013698,2]
[404672174,1770408635916,-500.0,0.00013698,2]
[404672175,1770408635926,-500.0,0.00013698,2]
[404672176,1770408635935,-500.0,0.00013698,2]
[404672177,1770408635944,-500.0,0.00013698,2]
[404672178,1770408635953,-446.12869816,0.00013698,2]
[404672179,1770408635962,-200.0,0.00013698,2]
[404672180,1770408635972,-500.0,0.00013698,2]
[404672181,1770408635981,-500.0,0.00013698,2]
[404672182,1770408635991,-500.0,0.00013698,2]
[404672183,1770408636000,-500.0,0.00013698,2]
[404672184,1770408636010,-500.0,0.00013698,2]
[404672185,1770408636020,-571.90548312,0.00013698,2]
[404672186,1770408636030,-504.11677041,0.00013698,2]
[404672187,1770408636040,-500.0,0.00013698,2]